[Event "Titled Tuesday Blitz November 29 Early 2022"]
[White "Fernandez De La Vara, Arnaldo"]
[Black "Ciuffoletti, Paolo"]
[WhiteFideId "3518388"]
[BlackFideId "807630"]
[WhiteElo "2387"]
[BlackElo "2143"]
[Result "1-0"]
[Round "01"]
[TimeControl "180+1"]
[Date "2022.11.30"]
[WhiteClock "0:00:32"]
[BlackClock "0:00:03"]

1. Nf3 {[%clk 0:02:54]}  d5 {[%clk 0:02:57]} 2. g3 {[%clk 0:02:54]}  Nf6 {[%clk 0:02:57]} 3. Bg2 {[%clk 0:02:54]}  g6 {[%clk 0:02:57]} 4. b3 {[%clk 0:02:53]}  Bg7 {[%clk 0:02:56]} 5. Bb2 {[%clk 0:02:54]}  O-O {[%clk 0:02:56]} 6. c4 {[%clk 0:02:55]}  c5 {[%clk 0:02:48]} 7. cxd5 {[%clk 0:02:54]}  Nxd5 {[%clk 0:02:47]} 8. Bxg7 {[%clk 0:02:55]}  Kxg7 {[%clk 0:02:47]} 9. O-O {[%clk 0:02:56]}  Nc6 {[%clk 0:02:47]} 10. d4 {[%clk 0:02:57]}  cxd4 {[%clk 0:02:35]} 11. Nxd4 {[%clk 0:02:58]}  e5 {[%clk 0:02:27]} 12. Nxc6 {[%clk 0:02:27]}  bxc6 {[%clk 0:02:25]} 13. Qc2 {[%clk 0:02:08]}  Qb6 {[%clk 0:02:12]} 14. Nd2 {[%clk 0:02:01]}  Ba6 {[%clk 0:01:56]} 15. Nc4 {[%clk 0:01:58]}  Bxc4 {[%clk 0:01:49]} 16. Qxc4 {[%clk 0:01:59]}  Rfd8 {[%clk 0:01:46]} 17. Rac1 {[%clk 0:01:56]}  Rac8 {[%clk 0:01:44]} 18. Rfd1 {[%clk 0:01:56]}  Ne7 {[%clk 0:01:32]} 19. h4 {[%clk 0:01:34]}  Rxd1+ {[%clk 0:01:13]} 20. Rxd1 {[%clk 0:01:35]}  Rd8 {[%clk 0:01:13]} 21. Rxd8 {[%clk 0:01:11]}  Qxd8 {[%clk 0:01:12]} 22. Qc5 {[%clk 0:01:12]}  f6 {[%clk 0:00:42]} 23. Qxa7 {[%clk 0:01:07]}  Kh8 {[%clk 0:00:26]} 24. Kh2 {[%clk 0:00:59]}  Nf5 {[%clk 0:00:14]} 25. Bxc6 {[%clk 0:00:51]}  Qd2 {[%clk 0:00:12]} 26. Qf7 {[%clk 0:00:42]}  Qd6 {[%clk 0:00:07]} 27. Bd5 {[%clk 0:00:41]}  Nh6 {[%clk 0:00:05]} 28. Qb7 {[%clk 0:00:36]}  Ng4+ {[%clk 0:00:03]} 29. Kg2 {[%clk 0:00:32]} 1-0


[Site "https://www.chess.com"]

[Event "Titled Tuesday Blitz November 29 Early 2022"]
[White "Fernandez Hernandez, Gerardo"]
[Black "Migot, Tangi"]
[WhiteFideId "2207400"]
[BlackFideId "662445"]
[WhiteElo "2221"]
[BlackElo "2578"]
[Result "0-1"]
[Round "01"]
[TimeControl "180+1"]
[Date "2022.11.30"]
[WhiteClock "0:00:01"]
[BlackClock "0:00:35"]

1. e4 {[%clk 0:02:58]}  Nf6 {[%clk 0:02:59]} 2. e5 {[%clk 0:02:56]}  Nd5 {[%clk 0:02:59]} 3. c4 {[%clk 0:02:56]}  Nb6 {[%clk 0:03:00]} 4. d4 {[%clk 0:02:56]}  d6 {[%clk 0:03:00]} 5. exd6 {[%clk 0:02:57]}  cxd6 {[%clk 0:03:00]} 6. Nc3 {[%clk 0:02:57]}  g6 {[%clk 0:03:00]} 7. Be3 {[%clk 0:02:58]}  Bg7 {[%clk 0:03:00]} 8. Rc1 {[%clk 0:02:57]}  O-O {[%clk 0:03:00]} 9. b3 {[%clk 0:02:58]}  Bf5 {[%clk 0:02:59]} 10. Nf3 {[%clk 0:02:51]}  d5 {[%clk 0:02:43]} 11. c5 {[%clk 0:02:47]}  Nc8 {[%clk 0:02:43]} 12. Bd3 {[%clk 0:02:22]}  e6 {[%clk 0:02:41]} 13. Bxf5 {[%clk 0:02:19]}  exf5 {[%clk 0:02:33]} 14. O-O {[%clk 0:02:17]}  Re8 {[%clk 0:02:32]} 15. Qd2 {[%clk 0:02:13]}  Ne7 {[%clk 0:02:27]} 16. Nb5 {[%clk 0:02:03]}  Nc8 {[%clk 0:02:21]} 17. Bf4 {[%clk 0:01:58]}  Na6 {[%clk 0:02:20]} 18. Be5 {[%clk 0:01:43]}  f6 {[%clk 0:02:11]} 19. Bd6 {[%clk 0:01:31]}  Qd7 {[%clk 0:02:09]} 20. a4 {[%clk 0:01:27]}  Re4 {[%clk 0:02:00]} 21. Ne1 {[%clk 0:01:04]}  Nxd6 {[%clk 0:01:38]} 22. Nxd6 {[%clk 0:01:03]}  Re6 {[%clk 0:01:38]} 23. Nd3 {[%clk 0:00:58]}  Bf8 {[%clk 0:01:36]} 24. Nb5 {[%clk 0:00:46]}  g5 {[%clk 0:01:06]} 25. Rfe1 {[%clk 0:00:43]}  Re4 {[%clk 0:01:02]} 26. f3 {[%clk 0:00:42]}  Rxe1+ {[%clk 0:01:02]} 27. Rxe1 {[%clk 0:00:42]}  Nb8 {[%clk 0:01:01]} 28. Qe2 {[%clk 0:00:34]}  a6 {[%clk 0:00:51]} 29. Nc3 {[%clk 0:00:27]}  Nc6 {[%clk 0:00:49]} 30. Qe6+ {[%clk 0:00:20]}  Qxe6 {[%clk 0:00:49]} 31. Rxe6 {[%clk 0:00:21]}  Kf7 {[%clk 0:00:50]} 32. Re1 {[%clk 0:00:16]}  Nxd4 {[%clk 0:00:48]} 33. Nxd5 {[%clk 0:00:15]}  Nxb3 {[%clk 0:00:47]} 34. Nc7 {[%clk 0:00:09]}  Rc8 {[%clk 0:00:43]} 35. Ne6 {[%clk 0:00:05]}  Nxc5 {[%clk 0:00:36]} 36. Ndxc5 {[%clk 0:00:01]}  Bxc5+ {[%clk 0:00:35]} 0-1


[Site "https://www.chess.com"]

[Event "Titled Tuesday Blitz November 29 Early 2022"]
[White "Figorito, Nick"]
[Black "Zivkovic, Nemanja"]
[WhiteFideId "30923689"]
[BlackFideId "942154"]
[WhiteElo "2376"]
[BlackElo "2372"]
[Result "0-1"]
[Round "01"]
[TimeControl "180+1"]
[Date "2022.11.30"]
[WhiteClock "0:00:07"]
[BlackClock "0:01:00"]

1. Nf3 {[%clk 0:03:00]}  Nf6 {[%clk 0:02:45]} 2. g3 {[%clk 0:03:00]}  d5 {[%clk 0:02:45]} 3. Bg2 {[%clk 0:03:01]}  c6 {[%clk 0:02:44]} 4. O-O {[%clk 0:03:01]}  Bg4 {[%clk 0:02:38]} 5. d4 {[%clk 0:03:01]}  e6 {[%clk 0:02:35]} 6. Nbd2 {[%clk 0:03:01]}  Nbd7 {[%clk 0:02:35]} 7. b3 {[%clk 0:03:01]}  Bd6 {[%clk 0:02:29]} 8. Bb2 {[%clk 0:03:02]}  O-O {[%clk 0:02:25]} 9. Re1 {[%clk 0:03:02]}  Qe7 {[%clk 0:02:20]} 10. e4 {[%clk 0:02:58]}  dxe4 {[%clk 0:02:10]} 11. Nxe4 {[%clk 0:02:59]}  Nxe4 {[%clk 0:02:11]} 12. Rxe4 {[%clk 0:03:00]}  f5 {[%clk 0:01:49]} 13. Re1 {[%clk 0:02:58]}  f4 {[%clk 0:01:48]} 14. Qd3 {[%clk 0:02:43]}  Rad8 {[%clk 0:01:48]} 15. a3 {[%clk 0:02:04]}  Bc7 {[%clk 0:01:41]} 16. Qc3 {[%clk 0:01:59]}  Qf7 {[%clk 0:01:36]} 17. Ng5 {[%clk 0:01:52]}  Qg6 {[%clk 0:01:34]} 18. Ne4 {[%clk 0:01:28]}  e5 {[%clk 0:01:34]} 19. Nc5 {[%clk 0:01:15]}  Nxc5 {[%clk 0:01:28]} 20. Qxc5 {[%clk 0:01:14]}  Be6 {[%clk 0:01:28]} 21. dxe5 {[%clk 0:01:08]}  Bb6 {[%clk 0:01:21]} 22. Qc3 {[%clk 0:01:00]}  fxg3 {[%clk 0:01:17]} 23. Re2 {[%clk 0:00:37]}  Bxf2+ {[%clk 0:01:08]} 24. Kh1 {[%clk 0:00:33]}  Qh5 {[%clk 0:01:06]} 25. h3 {[%clk 0:00:22]}  Bxh3 {[%clk 0:01:05]} 26. Rxf2 {[%clk 0:00:07]}  Rxf2 {[%clk 0:01:00]} 0-1


[Site "https://www.chess.com"]

[Event "Titled Tuesday Blitz November 29 Early 2022"]
[White "Gabdrakhmanov, Azat"]
[Black "Fawzy, Adham"]
[WhiteFideId "34189197"]
[BlackFideId "10613129"]
[WhiteElo "2254"]
[BlackElo "2541"]
[Result "1-0"]
[Round "01"]
[TimeControl "180+1"]
[Date "2022.11.30"]
[WhiteClock "0:01:15"]
[BlackClock "0:00:05"]

1. e4 {[%clk 0:02:59]}  c5 {[%clk 0:02:48]} 2. Nf3 {[%clk 0:02:59]}  d6 {[%clk 0:02:48]} 3. d4 {[%clk 0:02:58]}  cxd4 {[%clk 0:02:49]} 4. Nxd4 {[%clk 0:02:59]}  Nf6 {[%clk 0:02:50]} 5. Nc3 {[%clk 0:02:58]}  a6 {[%clk 0:02:50]} 6. Be3 {[%clk 0:02:57]}  e5 {[%clk 0:02:50]} 7. Nb3 {[%clk 0:02:56]}  Be7 {[%clk 0:02:50]} 8. f3 {[%clk 0:02:55]}  Be6 {[%clk 0:02:50]} 9. Qd2 {[%clk 0:02:56]}  h5 {[%clk 0:02:51]} 10. Nd5 {[%clk 0:02:53]}  Bxd5 {[%clk 0:02:49]} 11. exd5 {[%clk 0:02:53]}  Nbd7 {[%clk 0:02:50]} 12. c4 {[%clk 0:02:53]}  O-O {[%clk 0:02:45]} 13. Bd3 {[%clk 0:02:50]}  a5 {[%clk 0:02:39]} 14. O-O {[%clk 0:02:34]}  a4 {[%clk 0:02:36]} 15. Nc1 {[%clk 0:02:33]}  b6 {[%clk 0:02:12]} 16. Ne2 {[%clk 0:02:29]}  Nc5 {[%clk 0:01:49]} 17. Bc2 {[%clk 0:02:28]}  Nh7 {[%clk 0:01:34]} 18. b4 {[%clk 0:02:26]}  axb3 {[%clk 0:01:34]} 19. axb3 {[%clk 0:02:27]}  Rxa1 {[%clk 0:01:18]} 20. Rxa1 {[%clk 0:02:26]}  f5 {[%clk 0:01:18]} 21. b4 {[%clk 0:02:18]}  Nd7 {[%clk 0:01:18]} 22. Nc3 {[%clk 0:02:14]}  Bf6 {[%clk 0:00:53]} 23. Bxf5 {[%clk 0:01:58]}  e4 {[%clk 0:00:26]} 24. Ra7 {[%clk 0:01:57]}  Ne5 {[%clk 0:00:22]} 25. Bxe4 {[%clk 0:01:49]}  Nxc4 {[%clk 0:00:16]} 26. Bxh7+ {[%clk 0:01:47]}  Kh8 {[%clk 0:00:16]} 27. Qd3 {[%clk 0:01:42]}  Nxe3 {[%clk 0:00:16]} 28. Qxe3 {[%clk 0:01:38]}  Kxh7 {[%clk 0:00:15]} 29. Ne4 {[%clk 0:01:37]}  Kh8 {[%clk 0:00:11]} 30. Nxf6 {[%clk 0:01:32]}  Qxf6 {[%clk 0:00:08]} 31. h3 {[%clk 0:01:30]}  Rc8 {[%clk 0:00:07]} 32. Kh2 {[%clk 0:01:24]}  h4 {[%clk 0:00:07]} 33. Qe4 {[%clk 0:01:20]}  Rc3 {[%clk 0:00:04]} 34. Qe8+ {[%clk 0:01:16]}  Kh7 {[%clk 0:00:05]} 35. Qh5+ {[%clk 0:01:16]}  Kg8 {[%clk 0:00:05]} 36. Ra8+ {[%clk 0:01:15]} 1-0


[Site "https://www.chess.com"]

[Event "Titled Tuesday Blitz November 29 Early 2022"]
[White "Garagulya, Konstantin"]
[Black "Riehle, Marco"]
[WhiteFideId "4128931"]
[BlackFideId "12904392"]
[WhiteElo "2329"]
[BlackElo "2462"]
[Result "1-0"]
[Round "01"]
[TimeControl "180+1"]
[Date "2022.11.30"]
[WhiteClock "0:00:20"]
[BlackClock "0:00:30"]

1. d4 {[%clk 0:02:47]}  d5 {[%clk 0:02:59]} 2. Nf3 {[%clk 0:02:43]}  e6 {[%clk 0:02:57]} 3. c4 {[%clk 0:02:43]}  Nf6 {[%clk 0:02:57]} 4. Bg5 {[%clk 0:02:43]}  Be7 {[%clk 0:02:54]} 5. Nbd2 {[%clk 0:02:42]}  O-O {[%clk 0:02:52]} 6. e3 {[%clk 0:02:43]}  Ne4 {[%clk 0:02:52]} 7. Bxe7 {[%clk 0:02:41]}  Qxe7 {[%clk 0:02:52]} 8. Bd3 {[%clk 0:02:40]}  f5 {[%clk 0:02:50]} 9. Qc2 {[%clk 0:02:40]}  c6 {[%clk 0:02:48]} 10. Ne5 {[%clk 0:02:38]}  Nd7 {[%clk 0:02:47]} 11. Nxd7 {[%clk 0:02:37]}  Bxd7 {[%clk 0:02:48]} 12. O-O {[%clk 0:02:37]}  Rf6 {[%clk 0:02:41]} 13. f3 {[%clk 0:02:37]}  Nxd2 {[%clk 0:02:41]} 14. Qxd2 {[%clk 0:02:37]}  Qd6 {[%clk 0:02:36]} 15. c5 {[%clk 0:02:36]}  Qc7 {[%clk 0:02:36]} 16. f4 {[%clk 0:02:37]}  g5 {[%clk 0:02:31]} 17. g3 {[%clk 0:02:36]}  g4 {[%clk 0:02:30]} 18. b4 {[%clk 0:02:34]}  h5 {[%clk 0:02:29]} 19. Kg2 {[%clk 0:02:23]}  Kg7 {[%clk 0:02:26]} 20. Rh1 {[%clk 0:02:20]}  h4 {[%clk 0:02:24]} 21. h3 {[%clk 0:02:15]}  Rg6 {[%clk 0:02:07]} 22. hxg4 {[%clk 0:02:07]}  Rxg4 {[%clk 0:02:08]} 23. Rxh4 {[%clk 0:02:07]}  Rxh4 {[%clk 0:02:08]} 24. gxh4 {[%clk 0:02:08]}  Rh8 {[%clk 0:02:07]} 25. Kh3 {[%clk 0:02:03]}  Be8 {[%clk 0:02:00]} 26. Rg1+ {[%clk 0:02:03]}  Kf8 {[%clk 0:02:01]} 27. Qg2 {[%clk 0:02:01]}  Bh5 {[%clk 0:01:59]} 28. Be2 {[%clk 0:02:00]}  Bxe2 {[%clk 0:01:45]} 29. Qxe2 {[%clk 0:02:01]}  Qh7 {[%clk 0:01:45]} 30. Qf2 {[%clk 0:01:53]}  Ke7 {[%clk 0:01:34]} 31. Qg3 {[%clk 0:01:51]}  Kd8 {[%clk 0:01:33]} 32. Qg5+ {[%clk 0:01:47]}  Kc8 {[%clk 0:01:34]} 33. Rg3 {[%clk 0:01:46]}  Kb8 {[%clk 0:01:30]} 34. Kg2 {[%clk 0:01:10]}  a6 {[%clk 0:01:27]} 35. h5 {[%clk 0:00:57]}  a5 {[%clk 0:01:13]} 36. a3 {[%clk 0:00:56]}  Ka7 {[%clk 0:01:06]} 37. Qg6 {[%clk 0:00:54]}  Qxh5 {[%clk 0:01:05]} 38. Qxh5 {[%clk 0:00:55]}  Rxh5 {[%clk 0:01:06]} 39. Rg6 {[%clk 0:00:55]}  Rh4 {[%clk 0:00:52]} 40. Rxe6 {[%clk 0:00:48]}  Rg4+ {[%clk 0:00:52]} 41. Kf2 {[%clk 0:00:47]}  Rh4 {[%clk 0:00:52]} 42. bxa5 {[%clk 0:00:28]}  Rh2+ {[%clk 0:00:51]} 43. Kf3 {[%clk 0:00:26]}  Ka6 {[%clk 0:00:50]} 44. Rg6 {[%clk 0:00:20]}  Kxa5 {[%clk 0:00:48]} 45. Rg7 {[%clk 0:00:20]}  Ka6 {[%clk 0:00:46]} 46. Rf7 {[%clk 0:00:19]}  Rh3+ {[%clk 0:00:46]} 47. Kf2 {[%clk 0:00:19]}  Rh2+ {[%clk 0:00:47]} 48. Kf3 {[%clk 0:00:19]}  Rh3+ {[%clk 0:00:46]} 49. Kf2 {[%clk 0:00:18]}  Rh2+ {[%clk 0:00:47]} 50. Kg3 {[%clk 0:00:18]}  Ra2 {[%clk 0:00:46]} 51. Rxf5 {[%clk 0:00:18]}  Rxa3 {[%clk 0:00:46]} 52. Re5 {[%clk 0:00:18]}  Ra1 {[%clk 0:00:32]} 53. f5 {[%clk 0:00:18]}  Rf1 {[%clk 0:00:33]} 54. Kg2 {[%clk 0:00:18]}  Ra1 {[%clk 0:00:31]} 55. f6 {[%clk 0:00:18]}  Ra2+ {[%clk 0:00:30]} 56. Kg3 {[%clk 0:00:19]}  Ra1 {[%clk 0:00:30]} 57. Rf5 {[%clk 0:00:18]}  Rg1+ {[%clk 0:00:30]} 58. Kf4 {[%clk 0:00:18]}  Rg8 {[%clk 0:00:29]} 59. f7 {[%clk 0:00:19]}  Rf8 {[%clk 0:00:30]} 60. Ke5 {[%clk 0:00:19]}  b5 {[%clk 0:00:30]} 61. Kd6 {[%clk 0:00:18]}  b4 {[%clk 0:00:29]} 62. Ke7 {[%clk 0:00:19]}  Rb8 {[%clk 0:00:28]} 63. f8=Q {[%clk 0:00:19]}  Rxf8 {[%clk 0:00:29]} 64. Rxf8 {[%clk 0:00:20]}  Ka7 {[%clk 0:00:28]} 65. Rf1 {[%clk 0:00:19]}  Ka6 {[%clk 0:00:29]} 66. Kd6 {[%clk 0:00:20]}  Kb5 {[%clk 0:00:30]} 67. Rb1 {[%clk 0:00:20]}  Kc4 {[%clk 0:00:30]} 68. Kxc6 {[%clk 0:00:20]} 1-0


[Site "https://www.chess.com"]

[Event "Titled Tuesday Blitz November 29 Early 2022"]
[White "Girel, Joseph"]
[Black "Polanco Nunez, Yoel Estarling"]
[WhiteFideId "36033561"]
[BlackFideId "6401783"]
[WhiteElo "2281"]
[BlackElo "2132"]
[Result "1-0"]
[Round "01"]
[TimeControl "180+1"]
[Date "2022.11.30"]
[WhiteClock "0:01:51"]
[BlackClock "0:01:06"]

1. d4 {[%clk 0:02:43]}  Nf6 {[%clk 0:02:59]} 2. Bg5 {[%clk 0:02:41]}  Ne4 {[%clk 0:02:58]} 3. Bf4 {[%clk 0:02:40]}  d5 {[%clk 0:02:59]} 4. Nd2 {[%clk 0:02:39]}  Nxd2 {[%clk 0:02:56]} 5. Qxd2 {[%clk 0:02:40]}  Bf5 {[%clk 0:02:53]} 6. Nf3 {[%clk 0:02:36]}  e6 {[%clk 0:02:53]} 7. e3 {[%clk 0:02:34]}  Nd7 {[%clk 0:02:50]} 8. c4 {[%clk 0:02:33]}  c6 {[%clk 0:02:43]} 9. Be2 {[%clk 0:02:32]}  Be7 {[%clk 0:02:43]} 10. O-O {[%clk 0:02:31]}  O-O {[%clk 0:02:42]} 11. Rfc1 {[%clk 0:02:30]}  h6 {[%clk 0:02:31]} 12. b4 {[%clk 0:02:29]}  Nf6 {[%clk 0:02:28]} 13. b5 {[%clk 0:02:28]}  Ne4 {[%clk 0:02:24]} 14. Qe1 {[%clk 0:02:27]}  a5 {[%clk 0:02:01]} 15. bxc6 {[%clk 0:02:23]}  bxc6 {[%clk 0:01:59]} 16. Ne5 {[%clk 0:02:23]}  Bb4 {[%clk 0:01:50]} 17. Qf1 {[%clk 0:02:14]}  Rc8 {[%clk 0:01:42]} 18. cxd5 {[%clk 0:02:01]}  cxd5 {[%clk 0:01:36]} 19. Nc6 {[%clk 0:02:00]}  Qd7 {[%clk 0:01:28]} 20. Bb5 {[%clk 0:01:59]}  Qb7 {[%clk 0:01:26]} 21. Ba6 {[%clk 0:01:56]}  Qb6 {[%clk 0:01:24]} 22. Bxc8 {[%clk 0:01:56]}  Bc3 {[%clk 0:01:17]} 23. Ne7+ {[%clk 0:01:54]}  Kh8 {[%clk 0:01:14]} 24. Rab1 {[%clk 0:01:54]}  Qd8 {[%clk 0:01:08]} 25. Nxf5 {[%clk 0:01:53]}  Qxc8 {[%clk 0:01:06]} 26. Nd6 {[%clk 0:01:51]} 1-0


[Site "https://www.chess.com"]

[Event "Titled Tuesday Blitz November 29 Early 2022"]
[White "Grave, Jacob Templen"]
[Black "Ohanyan, Emin"]
[WhiteFideId "1542656"]
[BlackFideId "13312022"]
[WhiteElo "2126"]
[BlackElo "2352"]
[Result "0-1"]
[Round "01"]
[TimeControl "180+1"]
[Date "2022.11.30"]
[WhiteClock "0:00:01"]
[BlackClock "0:00:24"]

1. d4 {[%clk 0:02:59]}  Nf6 {[%clk 0:02:57]} 2. c4 {[%clk 0:02:59]}  d6 {[%clk 0:02:58]} 3. Nf3 {[%clk 0:02:58]}  Nbd7 {[%clk 0:02:58]} 4. Nc3 {[%clk 0:02:58]}  c6 {[%clk 0:02:58]} 5. e4 {[%clk 0:02:58]}  Qc7 {[%clk 0:02:58]} 6. Be2 {[%clk 0:02:49]}  e5 {[%clk 0:02:54]} 7. O-O {[%clk 0:02:43]}  Be7 {[%clk 0:02:54]} 8. Be3 {[%clk 0:02:39]}  O-O {[%clk 0:02:52]} 9. h3 {[%clk 0:02:32]}  h6 {[%clk 0:02:48]} 10. d5 {[%clk 0:02:25]}  a5 {[%clk 0:02:30]} 11. Rc1 {[%clk 0:02:21]}  Nc5 {[%clk 0:02:28]} 12. Nd2 {[%clk 0:01:47]}  Nh7 {[%clk 0:02:18]} 13. a3 {[%clk 0:01:31]}  Bg5 {[%clk 0:02:09]} 14. b4 {[%clk 0:01:21]}  axb4 {[%clk 0:02:05]} 15. axb4 {[%clk 0:01:20]}  Bxe3 {[%clk 0:01:59]} 16. fxe3 {[%clk 0:01:21]}  Nd7 {[%clk 0:01:58]} 17. Nf3 {[%clk 0:01:09]}  Qb6 {[%clk 0:01:48]} 18. Qd2 {[%clk 0:01:05]}  Qxb4 {[%clk 0:01:46]} 19. Rb1 {[%clk 0:00:45]}  Qc5 {[%clk 0:01:43]} 20. Nh4 {[%clk 0:00:28]}  Ra3 {[%clk 0:01:35]} 21. Nf5 {[%clk 0:00:22]}  Ndf6 {[%clk 0:01:25]} 22. Rbc1 {[%clk 0:00:18]}  Ng5 {[%clk 0:01:23]} 23. Nxh6+ {[%clk 0:00:12]}  Kh7 {[%clk 0:01:20]} 24. Ng4 {[%clk 0:00:10]}  Bxg4 {[%clk 0:01:18]} 25. Bxg4 {[%clk 0:00:09]}  Kg8 {[%clk 0:01:06]} 26. Bf5 {[%clk 0:00:08]}  g6 {[%clk 0:01:06]} 27. h4 {[%clk 0:00:06]}  gxf5 {[%clk 0:01:03]} 28. hxg5 {[%clk 0:00:06]}  Nxe4 {[%clk 0:01:04]} 29. Nxe4 {[%clk 0:00:06]}  fxe4 {[%clk 0:01:05]} 30. Rce1 {[%clk 0:00:02]}  cxd5 {[%clk 0:00:55]} 31. cxd5 {[%clk 0:00:01]}  Qc8 {[%clk 0:00:24]} 32. Qf2 {[%clk 0:00:01]}  Qg4 {[%clk 0:00:23]} 33. Qf6 {[%clk 0:00:01]}  Ra2 {[%clk 0:00:24]} 34. Rf2 {[%clk 0:00:01]}  Rxf2 {[%clk 0:00:24]} 35. Kxf2 {[%clk 0:00:01]}  Qh4+ {[%clk 0:00:24]} 0-1


[Site "https://www.chess.com"]

[Event "Titled Tuesday Blitz November 29 Early 2022"]
[White "Guliev, Logman"]
[Black "Remizov, Yaroslav"]
[WhiteFideId "13400061"]
[BlackFideId "34134015"]
[WhiteElo "2161"]
[BlackElo "2414"]
[Result "0-1"]
[Round "01"]
[TimeControl "180+1"]
[Date "2022.11.30"]
[WhiteClock "0:00:18"]
[BlackClock "0:00:19"]

1. e4 {[%clk 0:02:56]}  e6 {[%clk 0:02:58]} 2. d4 {[%clk 0:02:55]}  d5 {[%clk 0:02:58]} 3. Nd2 {[%clk 0:02:56]}  dxe4 {[%clk 0:02:55]} 4. Nxe4 {[%clk 0:02:55]}  Nd7 {[%clk 0:02:56]} 5. Nf3 {[%clk 0:02:54]}  Ngf6 {[%clk 0:02:56]} 6. Nxf6+ {[%clk 0:02:55]}  Nxf6 {[%clk 0:02:54]} 7. Bd3 {[%clk 0:02:55]}  b6 {[%clk 0:02:51]} 8. Bb5+ {[%clk 0:02:45]}  Bd7 {[%clk 0:02:51]} 9. Bxd7+ {[%clk 0:02:45]}  Qxd7 {[%clk 0:02:52]} 10. O-O {[%clk 0:02:44]}  Bd6 {[%clk 0:02:51]} 11. h3 {[%clk 0:02:43]}  O-O {[%clk 0:02:50]} 12. Bg5 {[%clk 0:02:42]}  Ne4 {[%clk 0:02:48]} 13. Be3 {[%clk 0:02:40]}  Qb5 {[%clk 0:02:39]} 14. Qc1 {[%clk 0:02:30]}  Rad8 {[%clk 0:02:24]} 15. c4 {[%clk 0:02:30]}  Qf5 {[%clk 0:02:19]} 16. a3 {[%clk 0:02:19]}  c5 {[%clk 0:02:09]} 17. b4 {[%clk 0:01:55]}  cxb4 {[%clk 0:01:54]} 18. axb4 {[%clk 0:01:55]}  Bxb4 {[%clk 0:01:55]} 19. Rxa7 {[%clk 0:01:55]}  Rc8 {[%clk 0:01:38]} 20. Ne5 {[%clk 0:01:43]}  Nf6 {[%clk 0:01:12]} 21. Bg5 {[%clk 0:01:28]}  b5 {[%clk 0:01:07]} 22. Bxf6 {[%clk 0:01:15]}  Qxf6 {[%clk 0:01:06]} 23. Qb2 {[%clk 0:00:50]}  Bd6 {[%clk 0:00:29]} 24. Nd7 {[%clk 0:00:48]}  Qe7 {[%clk 0:00:27]} 25. Qxb5 {[%clk 0:00:19]}  Rfd8 {[%clk 0:00:27]} 26. c5 {[%clk 0:00:18]}  Bf4 {[%clk 0:00:23]} 27. Rb7 {[%clk 0:00:17]}  Qg5 {[%clk 0:00:20]} 28. c6 {[%clk 0:00:17]}  Qxb5 {[%clk 0:00:20]} 29. Rxb5 {[%clk 0:00:17]}  Rxc6 {[%clk 0:00:20]} 30. g3 {[%clk 0:00:17]}  Rxd7 {[%clk 0:00:19]} 31. gxf4 {[%clk 0:00:16]}  g6 {[%clk 0:00:19]} 32. Rd1 {[%clk 0:00:17]}  Rcd6 {[%clk 0:00:19]} 33. Rb4 {[%clk 0:00:17]}  Kg7 {[%clk 0:00:20]} 34. Kg2 {[%clk 0:00:17]}  Kf6 {[%clk 0:00:20]} 35. Kf3 {[%clk 0:00:18]}  Kf5 {[%clk 0:00:20]} 36. Ke3 {[%clk 0:00:19]}  Rd5 {[%clk 0:00:20]} 37. Rb6 {[%clk 0:00:19]}  Ra7 {[%clk 0:00:20]} 38. Rd3 {[%clk 0:00:18]}  h5 {[%clk 0:00:19]} 39. Rb7 {[%clk 0:00:18]}  Rxb7 {[%clk 0:00:19]} 0-1


[Site "https://www.chess.com"]

[Event "Titled Tuesday Blitz November 29 Early 2022"]
[White "Hakobyan, Aram"]
[Black "Zatonskih, Anna"]
[WhiteFideId "13306677"]
[BlackFideId "14101572"]
[WhiteElo "2563"]
[BlackElo "2362"]
[Result "1-0"]
[Round "01"]
[TimeControl "180+1"]
[Date "2022.11.30"]
[WhiteClock "0:00:40"]
[BlackClock "0:00:03"]

1. Nf3 {[%clk 0:02:59]}  d5 {[%clk 0:02:59]} 2. b3 {[%clk 0:02:57]}  Nf6 {[%clk 0:02:54]} 3. Bb2 {[%clk 0:02:56]}  g6 {[%clk 0:02:54]} 4. c4 {[%clk 0:02:54]}  c6 {[%clk 0:02:52]} 5. g3 {[%clk 0:02:54]}  Bg7 {[%clk 0:02:51]} 6. Bg2 {[%clk 0:02:54]}  O-O {[%clk 0:02:51]} 7. O-O {[%clk 0:02:54]}  a5 {[%clk 0:02:32]} 8. Nc3 {[%clk 0:02:53]}  d4 {[%clk 0:02:15]} 9. Na4 {[%clk 0:02:51]}  Nh5 {[%clk 0:01:53]} 10. e3 {[%clk 0:02:31]}  e5 {[%clk 0:01:52]} 11. exd4 {[%clk 0:02:24]}  exd4 {[%clk 0:01:53]} 12. Re1 {[%clk 0:02:21]}  Na6 {[%clk 0:01:50]} 13. c5 {[%clk 0:01:48]}  Nb4 {[%clk 0:00:54]} 14. Re4 {[%clk 0:01:46]}  Bf5 {[%clk 0:00:39]} 15. Rxd4 {[%clk 0:01:44]}  Bxd4 {[%clk 0:00:39]} 16. Nxd4 {[%clk 0:01:45]}  Ng7 {[%clk 0:00:34]} 17. Nb6 {[%clk 0:01:44]}  Nd3 {[%clk 0:00:22]} 18. Bc3 {[%clk 0:01:42]}  Rb8 {[%clk 0:00:19]} 19. Na4 {[%clk 0:01:04]}  Re8 {[%clk 0:00:15]} 20. Bf1 {[%clk 0:00:55]}  Re1 {[%clk 0:00:14]} 21. Qf3 {[%clk 0:00:46]}  Qe7 {[%clk 0:00:12]} 22. Nxf5 {[%clk 0:00:40]}  Nxf5 {[%clk 0:00:09]} 23. Qxd3 {[%clk 0:00:39]}  Rxa1 {[%clk 0:00:03]} 24. Bxa1 {[%clk 0:00:40]} 1-0


[Site "https://www.chess.com"]